bitfinex/quotes_ETHUSD_20240822
["timestamp","ask_amount","ask_price","bid_price","bid_amount"]
[1724288353628,11.06803111,2633.5,2633.4,0.127076]
[1724288357910,9.49481108,2633.5,2633.4,2.495576]
[1724288358131,5.30210832,2633.5,2633.4,2.495576]
[1724288358536,0.04388832,2633.5,2633.4,2.495576]
[1724288358762,0.04388832,2633.5,2633.4,11.62724854]
[1724288359059,0.39626921,2633.6,2633.4,11.62724854]
[1724288359060,0.39626921,2633.6,2633.5,9.96294]
[1724288359554,0.39626921,2633.6,2633.5,6.16572]
[1724288359907,0.39626921,2633.6,2633.5,2.3685]
[1724288360334,0.43236476,2633.6,2633.5,2.3685]
[1724288360722,0.39626921,2633.6,2633.5,2.3685]
[1724288366749,0.43236476,2633.6,2633.5,2.3685]
[1724288369437,0.43236476,2633.6,2633.5,3.3775516]
[1724288369642,0.43236476,2633.6,2633.5,7.1747716]
[1724288369643,0.39626921,2633.6,2633.5,7.1747716]
[1724288369838,0.39626921,2633.6,2633.5,10.9719916]
[1724288371041,0.39626921,2633.6,2633.5,7.1747716]
[1724288371241,0.39626921,2633.6,2633.5,2.3685]
[1724288372077,0.43281871,2633.6,2633.5,2.3685]
[1724288377403,0.39626921,2633.6,2633.5,2.3685]
[1724288381898,0.39626921,2633.6,2633.5,6.16572]
[1724288382051,0.43277328,2633.6,2633.5,6.16572]
[1724288382253,0.39626921,2633.6,2633.5,7.1747226]
[1724288382798,0.43281974,2633.6,2633.5,7.1747226]
[1724288383033,0.43281974,2633.6,2633.5,11.5219426]
[1724288383296,0.39626921,2633.6,2633.5,3.3775026]
[1724288383870,0.4315426,2633.6,2633.5,3.3775026]
[1724288384251,0.4315426,2633.6,2633.5,2.3685]
[1724288386082,0.4315426,2633.6,2633.4,0.127076]
[1724288386283,4.2286426,2633.6,2633.4,0.127076]
[1724288386482,4.19336921,2633.6,2633.4,0.127076]
[1724288386688,0.03632197,2633.5,2633.4,0.127076]
[1724288389626,4.25649909,2633.5,2633.4,0.127076]
[1724288389810,8.05371909,2633.5,2633.4,0.127076]
[1724288390768,10.41071909,2633.5,2633.4,0.127076]
[1724288391345,17.71193909,2633.5,2633.4,0.127076]
[1724288391508,20.71193909,2633.5,2633.4,0.127076]
[1724288391836,13.41071909,2633.5,2633.4,0.127076]
[1724288393456,0.45927909,2633.5,2633.4,0.127076]
[1724288393752,4.25649909,2633.5,2633.4,0.127076]
[1724288394444,8.05371909,2633.5,2633.4,0.127076]
[1724288397129,4.25649909,2633.5,2633.4,0.127076]
[1724288397843,3.83354197,2633.5,2633.4,0.127076]
[1724288400125,3.79877197,2633.5,2633.4,0.127076]
[1724288400329,0.00155197,2633.5,2633.4,0.127076]
[1724288400563,0.00155197,2633.5,2633.4,2.515576]
[1724288401573,0.00155197,2633.5,2633.4,6.312946]
[1724288401771,0.00155197,2633.5,2633.4,11.6713656]
[1724288402179,0.00155197,2633.5,2633.4,7.8739956]
[1724288403127,0.00155197,2633.5,2633.4,4.0766256]
[1724288404189,0.00155197,2633.5,2633.4,0.127076]
[1724288405674,3.79877197,2633.5,2633.4,0.127076]
[1724288405888,0.00155197,2633.5,2633.4,0.127076]
[1724288406096,0.00155197,2633.5,2633.4,2.572376]
[1724288406895,0.00155197,2633.5,2633.4,0.127076]
[1724288407055,0.00155197,2633.5,2633.4,2.572376]
[1724288409276,3.79877197,2633.5,2633.4,0.127076]
[1724288409645,8.01548509,2633.5,2633.4,0.127076]
[1724288409801,9.91148509,2633.5,2633.4,0.127076]
[1724288410601,5.69477197,2633.5,2633.4,0.127076]
[1724288411605,1.89755197,2633.5,2633.4,2.397876]
[1724288412315,1.89755197,2633.5,2633.4,0.127076]
[1724288412603,1.89755197,2633.5,2633.4,2.379476]
[1724288413715,5.69477197,2633.5,2633.4,0.127076]
[1724288415176,1.89755197,2633.5,2633.4,0.127076]
[1724288416114,1.89755197,2633.5,2633.4,2.586276]
[1724288416273,1.89755197,2633.5,2633.4,6.6422736]
[1724288417373,1.89755197,2633.5,2633.4,10.9896436]
[1724288417568,1.896,2633.5,2633.4,10.9896436]
[1724288417793,1.896,2633.5,2633.4,7.1922736]
[1724288421483,1.896,2633.5,2633.4,10.9896436]
[1724288421883,1.896,2633.5,2633.4,7.1922736]
[1724288422829,1.896,2633.5,2633.4,10.9896436]
[1724288423032,1.896,2633.5,2633.4,7.1922736]
[1724288425633,1.896,2633.5,2633.4,10.9896436]
[1724288426001,1.896,2633.5,2633.4,7.1922736]
[1724288426528,1.896,2633.5,2633.4,10.9896436]
[1724288426737,1.896,2633.5,2633.4,7.1922736]
[1724288426886,1.896,2633.5,2633.4,12.4496436]
[1724288427086,1.896,2633.5,2633.4,15.9068776]
[1724288427282,1.896,2633.5,2633.4,35.3468776]
[1724288428035,1.896,2633.5,2633.4,36.10731855]
[1724288428235,1.896,2633.5,2633.4,39.1442476]
[1724288428535,1.896,2633.5,2633.4,33.8868776]
[1724288428741,1.896,2633.5,2633.4,38.4446836]
[1724288429032,1.896,2633.5,2633.4,34.1900796]
[1724288429327,1.896,2633.5,2633.4,37.2270136]
[1724288429534,1.896,2633.5,2633.4,33.4296436]
[1724288429934,1.896,2633.5,2633.4,42.50669818]
[1724288430084,1.10383931,2633.5,2633.4,50.25521977]
[1724288430288,0.08772589,2633.5,2633.4,53.99198829]
[1724288430937,0.01958521,2633.5,2633.4,50.16245494]
[1724288431230,0.01958521,2633.5,2633.4,50.95742361]
[1724288431433,0.01958521,2633.5,2633.4,50.16245494]
[1724288431732,0.39615595,2634.7,2634.5,3.79578]
[1724288431891,0.39615595,2634.7,2634.5,0.994757]
[1724288432230,4.19174595,2634.7,2634.1,7.49]
[1724288432435,3.79603,2634.4,2634.1,7.49]
[1724288432740,2.488,2634.6,2634.1,7.49]
[1724288432741,3.79591,2634.5,2634.1,7.49]
[1724288433440,3.7959,2634.5,2634.1,7.49]
[1724288433607,4.8141056,2634.5,2634.1,7.49]
[1724288433938,2.2502,2634.0,2633.6,7.49]
[1724288434120,6.04642,2634.2,2633.4,23.364356]
[1724288434320,6.04642,2634.2,2633.5,3.93244067]
[1724288434522,2.2502,2634.2,2633.6,3.79705]
[1724288436292,6.04644,2634.2,2633.6,3.79705]
[1724288436800,2.2502,2634.2,2633.6,3.79705]
[1724288437705,2.2502,2634.2,2633.7,3.7969]
[1724288437906,2.854833,2634.2,2633.6,3.79705]
[1724288438105,2.854833,2634.2,2633.6,7.59402]
[1724288438443,2.854833,2634.2,2633.7,3.79692]
[1724288443879,6.651153,2634.2,2633.5,3.79712]
[1724288444032,6.651153,2634.2,2633.4,0.127076]
[1724288444372,1.0447283,2634.1,2633.6,3.79707]
[1724288444742,1.0447283,2634.1,2633.4,0.127076]
[1724288444941,3.79703,2633.7,2633.4,0.127076]
[1724288445162,3.79709,2633.6,2633.4,0.127076]
[1724288445341,3.79703,2633.7,2633.4,0.127076]
[1724288445683,0.39607251,2633.6,2633.4,0.127076]
[1724288446577,2.4997,2633.5,2633.4,0.127076]
[1724288446724,3.16898025,2633.5,2633.4,0.127076]
[1724288447325,6.96620025,2633.5,2633.4,0.127076]
[1724288447531,6.29692,2633.5,2633.4,0.127076]
[1724288452638,10.09414,2633.5,2633.4,0.127076]
[1724288452842,10.09414,2633.5,2631.8,8.28492069]
[1724288452843,3.79796,2633.0,2631.8,7.49]
[1724288453070,7.30041,2632.7,2631.8,3.79954]
[1724288453251,3.7988,2632.5,2631.8,3.79954]
[1724288453464,3.79841,2632.7,2632.0,3.79935]
[1724288453643,3.79854,2632.6,2632.0,3.79935]
[1724288454033,6.20229,2632.5,2631.9,3.79952]
[1724288455179,2.4036,2632.5,2632.0,3.79935]
[1724288455362,2.4036,2632.5,2631.9,3.79948]
[1724288455683,2.4036,2632.8,2632.2,3.799]
[1724288455836,10.42119,2633.2,2632.4,3.79871]
[1724288456035,3.79781,2633.1,2632.4,3.79871]
[1724288456279,10.42119,2633.2,2632.5,3.79866]
[1724288456440,3.79782,2633.1,2632.4,4.178581]
[1724288456786,10.42119,2633.2,2632.5,3.79865]
[1724288456950,3.79782,2633.1,2632.5,3.2481231]
[1724288457640,6.27119,2633.2,2632.5,7.0467631]
[1724288457840,3.79781,2633.1,2632.5,3.2481231]
[1724288458360,3.79781,2633.1,2632.6,0.74267041]
[1724288458999,3.79752,2633.3,2632.6,0.74267041]
[1724288459207,3.79742,2633.4,2632.5,2.4504]
[1724288459371,6.79752,2633.3,2632.6,3.79841]
[1724288459716,3.79766,2633.2,2632.6,3.79841]
[1724288459924,3.79766,2633.2,2632.7,0.624881]
[1724288460091,3.79742,2633.4,2632.7,0.624881]
[1724288460290,3.79742,2633.4,2632.8,3.79822]
[1724288460809,3.79742,2633.4,2632.7,4.423241]
[1724288460971,0.39597248,2633.3,2632.7,0.624881]
[1724288461175,0.39597248,2633.3,2633.0,3.79783]
[1724288461509,0.39597248,2633.3,2633.2,3.79766]
[1724288461827,0.39597248,2633.3,2633.0,3.79783]
[1724288462675,0.39597248,2633.3,2632.9,6.29283]
[1724288464497,0.39597248,2633.3,2632.9,6.29279]
[1724288464694,0.39597248,2633.3,2633.0,4.47137171]
[1724288465008,0.39597248,2633.3,2633.1,3.79778]
[1724288465380,0.39597248,2633.3,2633.2,3.79766]
[1724288466352,0.39597248,2633.3,2633.1,3.79778]
[1724288466691,0.39597248,2633.3,2633.2,3.79766]
[1724288467047,0.39597248,2633.3,2633.2,10.70751517]
[1724288467343,2.4832,2634.5,2633.9,3.79655]
[1724288467517,2.4832,2634.5,2633.8,3.79673]
[1724288467518,2.4832,2634.5,2634.0,3.79649]
[1724288467691,2.4832,2634.5,2634.1,3.79633]
[1724288467692,0.39597533,2634.4,2634.1,3.79633]
[1724288468328,0.39597533,2634.4,2634.0,3.79649]
[1724288469547,0.85465039,2634.4,2634.0,3.79649]
[1724288470859,0.39597533,2634.4,2634.3,3.79607]
[1724288471894,0.39597533,2634.4,2634.3,7.59214]
[1724288472066,2.4618,2635.3,2634.7,3.79546]
[1724288472404,7.58857,2635.6,2635.1,3.79482]
[1724288472405,2.4618,2635.6,2635.1,3.79482]
[1724288472588,0.39596369,2635.2,2635.1,3.79482]
[1724288472793,2.4618,2635.6,2635.1,3.79482]
[1724288472957,0.39598873,2635.2,2635.1,3.79482]
[1724288473364,3.79396,2635.8,2635.2,3.79473]
[1724288473602,0.3959917,2635.3,2635.2,3.79473]
[1724288473818,0.3959917,2635.3,2635.2,7.5895]
[1724288474640,0.3959917,2635.3,2635.2,3.79473]
[1724288477188,0.3959917,2635.3,2635.2,4.783623]
[1724288477984,0.3959917,2635.3,2635.1,6.0942]
[1724288477985,0.3959917,2635.3,2635.1,3.7949]
[1724288479451,0.3959917,2635.3,2634.8,19.44]
[1724288480335,4.1906217,2635.3,2634.8,19.44]
[1724288480581,0.3959917,2635.3,2634.8,23.23534]
[1724288480935,0.3959917,2635.3,2634.9,3.79518]
[1724288481883,0.3959917,2635.3,2634.8,19.44]
[1724288482103,1.04645887,2635.3,2634.8,19.44]
[1724288482244,4.84116887,2635.3,2634.8,19.44]
[1724288482435,2.3335,2635.1,2634.3,3.79595]
[1724288482766,3.79518,2635.0,2634.3,3.79595]
[1724288482969,4.408048,2635.0,2634.4,3.79584]
[1724288483173,3.79524,2634.9,2634.2,11.2861]
[1724288483373,4.408048,2635.0,2634.3,3.79607]
[1724288483540,0.6741548,2634.9,2634.3,3.79597]
[1724288484184,0.6741548,2634.9,2634.2,7.49]
[1724288484384,2.3538,2634.8,2634.1,3.79628]
[1724288484588,0.30279548,2634.7,2634.2,3.79611]
[1724288485581,0.30279548,2634.7,2634.1,3.79626]
[1724288485786,0.30279548,2634.7,2634.1,7.59253]
[1724288486306,0.30279548,2634.7,2633.6,11.28702]
[1724288486307,0.30279548,2634.7,2633.9,3.79652]
[1724288486446,3.79573,2634.6,2633.9,7.59307]
[1724288486646,4.82050255,2634.6,2633.9,3.79652]
[1724288486877,8.61627255,2634.6,2633.9,3.79652]
[1724288487103,8.61627255,2634.6,2633.7,3.79687]
[1724288487104,3.79616,2634.3,2633.7,3.79687]
[1724288487453,3.79607,2634.4,2633.8,3.79679]
[1724288487995,7.59212,2634.4,2633.7,3.79687]
[1724288488205,3.79609,2634.3,2633.7,3.79687]
[1724288488414,2.3486,2634.1,2633.6,3.79706]
[1724288488610,2.3486,2634.1,2633.2,11.28757]
[1724288488748,2.3486,2634.1,2633.3,3.79751]
[1724288488749,3.79663,2634.0,2633.3,3.79751]
[1724288488953,4.19266629,2634.0,2633.3,3.79751]
[1724288490452,4.19266629,2634.0,2633.4,3.79736]
[1724288490658,5.57661492,2634.0,2633.4,3.79736]
[1724288491022,3.79666,2633.9,2633.3,3.7975]
[1724288491305,5.57661492,2634.0,2633.3,3.7975]
[1724288492639,9.37325492,2634.0,2633.3,3.7975]
[1724288492902,5.57661492,2634.0,2633.3,3.7975]
[1724288493574,4.58926149,2633.9,2633.3,3.7975]
[1724288493775,4.58926149,2633.9,2633.1,3.79774]
[1724288493776,3.79689,2633.8,2633.1,3.79771]
[1724288494199,3.79689,2633.8,2633.2,3.79761]
[1724288495410,3.79689,2633.8,2633.3,3.79748]
[1724288495710,0.79252149,2633.9,2633.3,3.79748]
[1724288496010,4.19265629,2634.0,2633.4,3.79725]
[1724288496306,0.39603629,2634.0,2633.5,3.79713]
[1724288496464,1.05012792,2634.0,2633.5,3.79713]
[1724288496666,1.05012792,2634.0,2633.3,3.7974]
[1724288496667,4.84664792,2634.0,2633.3,3.7974]
[1724288497107,4.84664792,2634.0,2633.1,3.79773]
[1724288497108,5.9462,2633.9,2633.1,3.79773]
[1724288497309,0.69963279,2633.8,2633.1,3.79773]
[1724288497477,0.69963279,2633.8,2632.8,7.49]
[1724288497478,3.79748,2633.4,2632.8,7.49]
[1724288497816,3.79748,2633.4,2632.7,3.79828]
[1724288497817,3.79762,2633.3,2632.7,3.79828]
[1724288497960,3.79748,2633.4,2632.8,3.79819]
[1724288498165,5.150582,2633.4,2632.8,3.79819]
[1724288498568,5.150582,2633.4,2632.7,3.79828]
[1724288498963,3.79754,2633.3,2632.7,3.79828]
[1724288499163,3.79767,2633.2,2632.5,3.79861]
[1724288499398,3.79767,2633.2,2632.5,3.79858]
[1724288499718,3.79767,2633.2,2632.5,4.419578]
[1724288500809,3.79767,2633.2,2632.7,3.79837]
[1724288501208,3.79767,2633.2,2632.5,3.79855]
[1724288502364,5.150522,2633.4,2632.2,7.49]
[1724288502365,3.502,2633.0,2632.2,7.49]
[1724288502501,3.502,2633.0,2632.2,3.79903]
[1724288502502,3.79824,2632.8,2632.2,3.79903]
[1724288502706,3.79844,2632.7,2632.1,3.7992]
[1724288503607,4.37906,2632.9,2632.2,3.79906]
[1724288504115,3.7983,2632.8,2632.2,3.79906]
[1724288504453,0.39600282,2632.8,2632.2,3.79906]
[1724288504632,1.2533301,2632.8,2632.2,3.79906]
[1724288504838,5.0516001,2632.8,2632.2,3.79906]
[1724288505357,6.16909,2632.7,2632.0,3.79933]
[1724288505864,9.96759,2632.7,2632.0,3.79933]
[1724288506014,7.69947801,2632.7,2632.0,3.79933]
[1724288506413,3.79854,2632.6,2632.0,3.79933]
[1724288506843,3.79868,2632.5,2631.8,11.28964]
[1724288507046,3.79868,2632.5,2631.9,3.79949]
[1724288507760,3.79881,2632.4,2631.8,7.49]
[1724288507923,3.79881,2632.4,2631.4,6.1993]
[1724288507924,6.260281,2632.3,2631.3,3.80035]
[1724288508258,7.30149,2632.0,2631.1,6.19969]
[1724288508411,7.30149,2632.0,2631.3,3.80031]
[1724288509165,3.502,2632.0,2631.4,3.80021]
[1724288509313,3.79917,2632.2,2631.5,3.80008]
[1724288509750,3.79917,2632.2,2631.5,7.60001]
[1724288510268,5.8804,2632.3,2631.3,3.80034]
[1724288510550,5.8804,2632.3,2631.4,3.80025]
[1724288510551,3.79935,2632.1,2631.4,3.80025]
[1724288510712,7.59872,2632.1,2631.4,3.80025]
[1724288511326,3.79943,2632.0,2631.3,7.6006]
[1724288511524,3.79935,2632.1,2631.4,3.80021]
[1724288511941,3.79935,2632.1,2631.5,3.80006]
[1724288512625,3.58804,2632.2,2631.1,6.19969]
[1724288512626,3.79991,2631.7,2631.1,6.19969]
[1724288512822,3.79991,2631.7,2631.2,3.80053]
[1724288513258,3.79991,2631.7,2631.1,6.19969]
[1724288513555,3.79991,2631.7,2631.1,7.60116]
[1724288513856,6.19332,2631.9,2631.3,3.80026]
[1724288514544,6.19332,2631.9,2631.2,2.4229]
[1724288514859,6.19332,2631.9,2631.1,3.80065]
[1724288515216,6.19332,2631.9,2631.2,3.80054]
[1724288515448,7.54278,2631.9,2631.2,3.80054]
[1724288515757,7.54278,2631.9,2631.3,3.80039]
[1724288516583,3.7997,2631.8,2631.2,3.80052]
[1724288516756,3.7997,2631.8,2631.1,3.80059]
[1724288517136,3.7997,2631.8,2631.1,7.60117]
[1724288517544,3.7997,2631.8,2631.1,3.80058]
[1724288517741,0.61934,2631.7,2631.1,3.80058]
[1724288518139,0.61934,2631.7,2631.2,3.8004]
[1724288518357,3.7997,2631.8,2631.2,3.8004]
[1724288518553,2.3937,2631.9,2631.3,3.8004]
[1724288518788,6.19332,2631.9,2631.3,3.8004]
[1724288518991,1.349472,2631.8,2631.3,3.8004]
[1724288519161,6.19325,2631.9,2631.3,3.8004]
[1724288519162,2.3937,2631.9,2631.3,3.8003]
[1724288519661,0.39722468,2631.7,2631.3,3.8003]
[1724288522191,0.39722468,2631.7,2631.4,6.09434]
[1724288522349,0.39722468,2631.7,2631.4,2.2942]
[1724288523090,0.39722468,2631.7,2631.3,3.8003]
[1724288523687,0.39722468,2631.7,2631.3,7.6006]
[1724288524061,0.39722468,2631.7,2631.3,3.8003]
[1724288526361,0.39722468,2631.7,2631.2,2.3281]
[1724288526560,0.39722468,2631.7,2631.2,6.12853]
[1724288526764,4.19705468,2631.7,2631.1,7.60118]
[1724288526963,5.24647715,2631.7,2631.1,3.80057]
[1724288527290,1.44664715,2631.7,2631.2,3.80043]
[1724288527494,0.39722468,2631.7,2631.2,3.80043]
[1724288528278,4.19705468,2631.7,2631.2,3.80043]
[1724288528782,4.19705468,2631.7,2631.0,2.3083]
[1724288528783,3.79997,2631.6,2631.0,6.10903]
[1724288528963,0.39722468,2631.7,2631.2,3.80048]
[1724288529166,0.39722468,2631.7,2631.3,3.80031]
[1724288529397,0.39722468,2631.7,2631.5,3.80006]
[1724288529626,0.39722468,2631.7,2631.3,3.80031]
[1724288529627,0.39722468,2631.7,2631.3,7.60059]
[1724288529753,0.39722468,2631.7,2631.2,2.4064]
[1724288529953,0.39722468,2631.7,2631.5,3.80002]
[1724288530694,0.39722468,2631.7,2631.3,4.04094]
[1724288530896,0.39722468,2631.7,2631.3,0.24064]
[1724288531068,0.39722468,2631.7,2631.2,6.20692]
[1724288531270,0.39722468,2631.7,2631.2,3.80052]
[1724288531470,2.68832468,2631.7,2631.2,3.80052]
[1724288531725,2.68832468,2631.7,2630.9,6.06211]
[1724288531726,6.48825468,2631.7,2630.9,6.06211]
[1724288531854,3.8,2631.6,2630.9,3.80087]
[1724288532054,6.48825468,2631.7,2631.0,3.80083]
[1724288533413,6.48825468,2631.7,2630.8,0.127076]
[1724288533414,3.80024,2631.5,2630.8,0.127076]
[1724288533701,3.80024,2631.5,2630.8,3.928166]
[1724288534084,3.80024,2631.5,2630.9,3.80097]
[1724288534900,0.39732845,2631.4,2630.9,3.80087]
[1724288535298,0.39732845,2631.4,2631.0,3.80073]
[1724288535607,0.39732845,2631.4,2631.1,3.8006]
[1724288537184,0.39732845,2631.4,2631.2,3.80053]
[1724288537374,0.39732845,2631.4,2631.3,3.8004]
[1724288537827,0.39732845,2631.4,2631.1,3.8006]
[1724288537988,0.39732845,2631.4,2631.3,3.8004]
[1724288538407,0.39732845,2631.4,2631.0,6.23663]
[1724288538774,0.39732845,2631.4,2631.0,3.80073]
[1724288539173,0.39732845,2631.4,2631.2,3.8005]
[1724288539378,0.39732845,2631.4,2631.3,6.0881]
[1724288539596,0.39732845,2631.4,2631.3,7.07696]
[1724288539993,0.39732845,2631.4,2631.3,10.87736]
[1724288540767,0.39732845,2631.4,2631.3,8.58966]
[1724288540967,0.39732845,2631.4,2631.3,11.00776]
[1724288541723,6.12975,2633.1,2632.4,3.7988]
[1724288541919,6.1297,2633.1,2632.4,6.2169]
[1724288542272,3.79823,2632.8,2632.0,2.4181]
[1724288542478,6.13039,2632.7,2632.0,2.4181]
[1724288542791,6.13039,2632.7,2632.0,6.21748]
[1724288543009,3.7981,2632.9,2632.0,7.219191]
[1724288543211,3.79827,2632.8,2632.0,7.219191]
[1724288543437,3.502,2632.9,2631.6,3.7999]
[1724288543438,3.79909,2632.3,2631.6,3.7999]
[1724288543719,3.7991,2632.2,2631.6,3.7999]
[1724288544018,3.7991,2632.2,2631.5,3.8001]
[1724288544231,3.79916,2632.2,2631.2,3.80052]
[1724288544516,3.79916,2632.2,2631.3,3.80039]
[1724288544517,3.79951,2632.0,2631.3,3.80039]
[1724288545706,3.79951,2632.0,2631.0,2.407]
[1724288545707,3.140216,2632.1,2631.4,3.80023]
[1724288546041,3.7991,2632.2,2631.5,2.321]
[1724288546710,3.7991,2632.2,2631.6,3.79994]
[1724288546912,0.97355,2632.1,2631.5,2.321]
[1724288547113,3.79954,2631.9,2631.2,3.80042]
[1724288547428,3.7995,2632.0,2631.2,3.8004]
[1724288547629,3.7995,2632.0,2631.3,3.8003]
[1724288547828,0.777305,2631.9,2631.3,3.8003]
[1724288548128,6.996645,2631.9,2631.3,3.80035]
[1724288549179,3.197105,2631.9,2631.3,3.80035]
[1724288550858,3.197105,2631.9,2631.4,3.80025]
[1724288551611,3.197105,2631.9,2631.2,3.80047]
[1724288551813,3.197105,2631.9,2631.3,3.80037]
[1724288552533,6.996635,2631.9,2631.3,3.80037]
[1724288552926,3.79997,2631.6,2631.0,2.435]
[1724288553111,3.79997,2631.6,2630.9,3.80094]
[1724288553315,3.79997,2631.6,2630.9,3.80088]
[1724288553634,3.79997,2631.6,2631.0,3.80071]
[1724288553863,3.79997,2631.6,2631.1,3.80067]
[1724288554163,5.2295635,2631.8,2631.1,3.80067]
[1724288554912,5.2295635,2631.8,2631.1,7.60125]
[1724288555559,5.2295635,2631.8,2631.2,3.80044]
[1724288555971,3.197105,2631.9,2631.3,3.80039]
[1724288556115,6.996645,2631.9,2631.3,3.80039]
[1724288556316,3.7997,2631.8,2631.2,3.80044]
[1724288556566,6.996645,2631.9,2631.2,7.60088]
[1724288556788,6.996645,2631.9,2630.8,2.542376]
[1724288556789,2.3103,2631.5,2630.8,3.928166]
[1724288556945,7.3024,2631.3,2630.8,0.127076]
[1724288557150,11.10294,2631.3,2630.8,0.127076]
[1724288557463,0.39747934,2631.2,2630.8,0.127076]
[1724288559377,2.3103,2631.1,2630.8,0.127076]
[1724288559889,13.42826,2630.9,2630.8,0.127076]
[1724288560300,16.42826,2630.9,2630.8,0.127076]
[1724288560607,3.502,2630.2,2629.5,3.80291]
[1724288560742,3.502,2630.2,2629.5,3.803]
[1724288560743,3.80236,2630.0,2629.5,3.803]
[1724288561254,3.80236,2630.0,2629.4,2.4339]
[1724288562287,7.30404,2630.2,2629.4,2.4339]
[1724288562494,7.30404,2630.2,2629.5,3.80286]
[1724288562495,8.266874,2630.2,2629.5,3.80286]
[1724288562787,8.266874,2630.2,2629.4,2.4339]
[1724288562788,2.3243,2630.3,2629.7,3.80262]
[1724288562970,2.3243,2630.3,2629.7,7.60523]
[1724288563171,3.80177,2630.4,2629.8,3.80247]
[1724288563490,3.80177,2630.4,2629.4,2.4339]
[1724288563491,3.80236,2630.0,2629.4,3.8031]
[1724288563693,3.502,2629.9,2629.4,3.8031]
[1724288565146,8.034906,2629.9,2629.4,3.8031]
[1724288565549,10.422906,2629.9,2629.2,3.80334]
[1724288565771,8.034906,2629.9,2629.2,3.80334]
[1724288565966,8.034906,2629.9,2628.6,3.8042]
[1724288565967,3.80355,2629.2,2628.6,3.8042]
[1724288566201,3.80355,2629.2,2628.4,0.59631125]
[1724288566202,3.502,2629.1,2628.4,3.80452]
[1724288566491,3.502,2629.1,2628.4,3.80448]
[1724288566702,3.502,2629.1,2628.5,3.80444]
[1724288566992,3.502,2629.1,2628.3,2.4721]
[1724288566993,3.80425,2628.7,2628.2,0.127076]
[1724288567205,3.502,2628.5,2628.2,0.127076]
[1724288567644,3.80468,2628.4,2628.2,0.127076]
[1724288567839,7.30658,2628.5,2628.2,0.127076]
[1724288568089,3.80474,2628.3,2628.2,0.127076]
[1724288568301,3.8522,2628.5,2628.2,0.127076]
[1724288568302,6.3365,2628.5,2628.2,0.127076]
[1724288568444,3.80474,2628.3,2628.2,0.127076]
[1724288568643,4.818864,2628.3,2628.2,0.127076]
[1724288569108,14.694544,2628.3,2628.2,0.127076]
[1724288569261,14.694544,2628.3,2627.0,3.80651]
[1724288569262,3.80562,2627.7,2627.0,3.80651]
[1724288569446,10.085064,2628.3,2627.4,3.80603]
[1724288569447,7.3071,2628.1,2627.4,3.80603]
[1724288569657,7.3071,2628.1,2627.5,3.8058]
[1724288569997,3.502,2628.1,2627.6,3.80572]
[1724288570425,4.014124,2628.3,2627.8,3.80535]
[1724288570709,8.06,2628.7,2628.2,3.80487]
[1724288570862,8.06,2628.7,2628.4,3.80456]
[1724288571041,6.9434,2628.6,2627.4,3.0]
[1724288571249,3.80478,2628.3,2627.6,3.80566]
[1724288571441,4.91392,2628.5,2627.8,3.80537]
[1724288571746,1.10934,2628.5,2627.9,3.80525]
[1724288572046,4.91381,2628.5,2627.8,3.80535]
[1724288572394,0.805274,2628.4,2627.9,3.80522]
[1724288572590,1.20296685,2628.4,2627.9,3.80522]
[1724288572889,1.20296685,2628.4,2627.8,3.80535]
[1724288573244,5.00756685,2628.4,2627.8,3.80535]
[1724288573581,0.99213769,2628.3,2627.8,7.61068]
[1724288573785,0.99213769,2628.3,2627.8,7.61066]
[1724288573982,0.99213769,2628.3,2627.8,3.80533]
[1724288574905,1.20296685,2628.4,2628.3,3.80474]
[1724288574906,0.39769285,2628.4,2628.3,3.80474]
[1724288575397,0.39769285,2628.4,2628.3,7.60948]
[1724288576562,0.39769285,2628.4,2628.3,10.02118]
[1724288576764,0.39769285,2628.4,2628.3,14.37592]
[1724288576974,7.1648,2629.8,2629.0,3.80372]
[1724288577354,3.80283,2629.7,2629.1,3.80348]
[1724288577889,3.80283,2629.7,2629.0,3.80372]
[1724288578051,3.80283,2629.7,2629.0,7.60732]
[1724288578247,1.477011,2629.7,2629.2,3.80334]
[1724288578696,2.4728,2629.8,2629.2,3.80334]
[1724288578849,6.18468,2629.2,2628.4,3.80446]
[1724288579049,3.80368,2629.1,2628.4,3.80446]
[1724288579590,8.606136,2629.1,2628.4,3.80457]
[1724288579775,4.802446,2629.1,2628.5,3.80436]
[1724288580900,4.802446,2629.1,2628.4,3.80457]
[1724288581043,4.5220946,2629.0,2628.4,3.80457]
[1724288581248,4.5220946,2629.0,2628.2,7.60962]
[1724288581249,3.80388,2628.9,2628.2,7.60962]
[1724288581444,3.80388,2628.9,2628.2,3.80479]
[1724288581648,0.7183546,2629.0,2628.4,3.80458]
[1724288581849,4.5220846,2629.0,2628.4,3.80458]
[1724288582103,0.83257146,2628.9,2628.4,3.80458]
[1724288582467,7.60935,2628.4,2627.7,3.80556]
[1724288582661,3.80488,2628.3,2627.7,3.80556]
[1724288582863,3.80462,2628.4,2627.5,7.61156]
[1724288582864,3.8049,2628.2,2627.5,7.61156]
[1724288583098,3.8049,2628.2,2627.5,3.80576]
[1724288583500,3.8049,2628.2,2627.6,3.80574]
[1724288583913,7.6099,2628.2,2627.6,3.80574]
[1724288584118,3.8049,2628.2,2627.6,3.80574]
[1724288584427,4.6039002,2628.2,2627.6,3.80574]
[1724288585081,0.7990002,2628.2,2627.7,3.80556]
[1724288585482,3.80438,2628.6,2627.8,3.80545]
[1724288585714,3.80438,2628.6,2627.8,6.13829]
[1724288585943,3.83257146,2628.9,2627.6,3.80566]
[1724288585944,6.1721,2628.8,2627.6,3.80566]
[1724288586084,7.60992,2628.2,2627.6,3.80566]
[1724288586284,3.80493,2628.2,2627.6,3.80566]
[1724288587016,3.80493,2628.2,2627.5,3.80589]